fUST/lending_fUST_20240826
["ID","MTS","AMOUNT","RATE_DAILY","PERIOD"]
[336041579,1724677851185,-1661.795902,0.0001234,2]
[336041580,1724677851195,-1661.795902,0.0001234,2]
[336041581,1724677851204,-151.0,0.0001234,2]
[336041582,1724677851213,-657.413458,0.0001234,2]
[336041583,1724677851223,-657.413458,0.0001234,2]
[336041584,1724677851233,-657.413458,0.0001234,2]
[336041585,1724677851242,-657.413458,0.0001234,2]
[336041586,1724677851252,-539.070178,0.0001234,2]
[336041587,1724677851261,-539.070178,0.0001234,2]
[336041588,1724677851270,-1504.523589,0.0001234,2]
[336041589,1724677851280,-1504.523589,0.0001234,2]
[336041590,1724677851292,-1059.389236,0.0001234,2]
[336041591,1724677851301,-151.0,0.0001234,2]
[336041592,1724677851310,-1059.389236,0.0001234,2]
[336041593,1724677851320,-2166.514771,0.0001234,2]
[336041594,1724677851329,-2166.514771,0.0001234,2]
[336041595,1724677851341,-4505.450302,0.0001234,2]
[336041596,1724677851351,-4505.450302,0.0001234,2]
[336041597,1724677851360,-151.0,0.0001234,2]
[336041598,1724677851370,-2262.423483,0.0001234,2]
[336041599,1724677851380,-2262.423483,0.0001234,2]
[336041600,1724677851389,-2332.52,0.0001234,2]
[336041601,1724677851398,-2259.303336,0.0001234,2]
[336041602,1724677851408,-2259.303336,0.0001234,2]
[336041603,1724677851416,-2520.188002,0.0001234,2]
[336041604,1724677851425,-2520.188002,0.0001234,2]
[336041605,1724677851434,-204.475249,0.0001234,2]
[336041606,1724677851443,-204.475249,0.0001234,2]
[336041607,1724677851452,-225.379496,0.0001234,2]
[336041608,1724677851461,-635.419131,0.0001234,2]
[336041609,1724677851471,-225.379496,0.0001234,2]
[336041610,1724677851481,-635.419131,0.0001234,2]
[336041611,1724677851490,-2213.59,0.0001234,2]
[336041612,1724677851499,-1549.699567,0.0001234,2]
[336041613,1724677851509,-1549.699567,0.0001234,2]
[336041614,1724677851518,-1586.645441,0.0001234,2]
[336041615,1724677851527,-1586.645441,0.0001234,2]
[336041616,1724677851537,-500.0,0.0001234,2]
[336041617,1724677851546,-262.646992,0.0001234,2]
[336041618,1724677851555,-262.646992,0.0001234,2]
[336041619,1724677851564,-1334.319411,0.0001234,2]
[336041620,1724677851573,-1334.319411,0.0001234,2]
[336041621,1724677851583,-174.492092,0.0001234,2]
[336041622,1724677851592,-174.492092,0.0001234,2]
[336041623,1724677851601,-500.0,0.00012341,2]
[336041624,1724677851610,-1453.12033804,0.00012341,2]
[336041625,1724677852513,-500.0,0.00012249,2]
[336041626,1724677852524,-615.07,0.00012249,2]
[336041627,1724677852537,-722.005013,0.0001225,2]
[336041628,1724677852547,-722.005013,0.00012308,2]
[336041629,1724677852558,-722.005013,0.00012316,2]
[336041630,1724677852569,-500.0,0.0001232,2]
[336041631,1724677852578,-722.005013,0.0001232,2]
[336041632,1724677852588,-208.67556396,0.00012341,2]
[336041633,1724677852597,-1661.795902,0.00012341,2]
[336041634,1724677852607,-151.0,0.00012341,2]
[336041635,1724677852616,-170.414357,0.00012342,2]
[336041636,1724677852627,-170.414357,0.00012342,2]
[336041637,1724677852636,-1347.664072,0.00012342,2]
[336041638,1724677852645,-1347.664072,0.00012342,2]
[336041639,1724677852655,-988.037663,0.00012342,2]
[336041640,1724677852664,-344.307631,0.00012342,2]
[336041641,1724677852673,-988.037663,0.00012342,2]
[336041642,1724677852683,-344.307631,0.00012342,2]
[336041643,1724677852692,-2520.188002,0.00012342,2]
[336041644,1724677852702,-2520.188002,0.00012342,2]
[336041645,1724677852713,-204.475249,0.00012342,2]
[336041646,1724677852722,-204.475249,0.00012342,2]
[336041647,1724677852733,-635.419131,0.00012342,2]
[336041648,1724677852743,-635.419131,0.00012342,2]
[336041649,1724677852752,-1586.645441,0.00012342,2]
[336041650,1724677852762,-1586.645434,0.00012342,2]
[336041651,1724677852771,-262.646992,0.00012342,2]
[336041652,1724677852781,-262.646992,0.00012342,2]
[336041653,1724677852791,-1334.319411,0.00012342,2]
[336041654,1724677852802,-1334.319411,0.00012342,2]
[336041655,1724677852813,-174.492092,0.00012342,2]
[336041656,1724677852823,-174.492092,0.00012342,2]
[336041657,1724677852833,-500.0,0.00012349,2]
[336041658,1724677852843,-549.48,0.00012349,2]
[336041659,1724677852853,-500.0,0.00012349,2]
[336041660,1724677852863,-2332.52,0.00012349,2]
[336041661,1724677852872,-500.0,0.00012349,2]
[336041662,1724677852882,-2213.59,0.00012349,2]
[336041663,1724677852892,-500.0,0.00012349,2]
[336041664,1724677852902,-1005.88,0.00012349,2]
[336041665,1724677852912,-151.0,0.0001235,2]
[336041666,1724677852921,-151.0,0.0001235,2]
[336041667,1724677852930,-151.0,0.0001235,2]
[336041668,1724677852940,-151.0,0.0001235,2]
[336041669,1724677852950,-151.0,0.0001235,2]
[336041670,1724677852959,-151.0,0.0001235,2]
[336041671,1724677852968,-666.293601,0.0001235,2]
[336041672,1724677852977,-666.293601,0.0001235,2]
[336041673,1724677852987,-151.0,0.0001235,2]
[336041674,1724677852996,-262.086838,0.0001235,2]
[336041675,1724677853006,-262.086838,0.0001235,2]
[336041676,1724677853015,-500.0,0.0001235,2]
[336041677,1724677853026,-500.0,0.0001235,2]
[336041678,1724677853036,-500.0,0.0001235,2]
[336041679,1724677853045,-500.0,0.0001235,2]
[336041680,1724677853055,-500.0,0.0001235,2]
[336041681,1724677853064,-549.48,0.0001235,2]
[336041682,1724677853074,-549.48,0.0001235,2]
[336041683,1724677853083,-549.48,0.0001235,2]
[336041684,1724677853094,-151.0,0.0001235,2]
[336041685,1724677853103,-500.0,0.0001235,2]
[336041686,1724677853113,-657.413458,0.0001235,2]
[336041687,1724677853122,-657.413458,0.0001235,2]
[336041688,1724677853131,-2166.514771,0.0001235,2]
[336041689,1724677853141,-2166.514771,0.0001235,2]
[336041690,1724677853150,-151.0,0.0001235,2]
[336041691,1724677853160,-2262.423483,0.0001235,2]
[336041692,1724677853170,-2262.423483,0.0001235,2]
[336041693,1724677853180,-2332.52,0.0001235,2]
[336041694,1724677853189,-2259.303336,0.0001235,2]
[336041695,1724677853198,-2259.303336,0.0001235,2]
[336041696,1724677853208,-500.0,0.0001235,2]
[336041697,1724677853218,-225.379496,0.0001235,2]
[336041698,1724677853229,-225.379496,0.0001235,2]
[336041699,1724677853238,-2213.59,0.0001235,2]
[336041700,1724677853248,-1549.699567,0.0001235,2]
[336041701,1724677853258,-2213.59,0.0001235,2]
[336041702,1724677853268,-2213.59,0.0001235,2]
[336041703,1724677853278,-1549.699567,0.0001235,2]
[336041704,1724677853292,-528.53858389,0.0001235,2]
[336041705,1724677853302,-1005.88,0.0001235,2]
[336041706,1724677853312,-151.0,0.00012351,2]
[336041707,1724677853321,-189.330153,0.00012351,2]
[336041708,1724677853333,-544.298299,0.00012351,2]
[336041709,1724677853342,-544.298299,0.00012351,2]
[336041710,1724677853352,-151.0,0.00012351,2]
[336041711,1724677853361,-210.045066,0.00012351,2]
[336041712,1724677853373,-210.045066,0.00012351,2]
[336041713,1724677853383,-303.812604,0.00012351,2]
[336041714,1724677853393,-303.812604,0.00012351,2]
[336041715,1724677853404,-549.48,0.00012351,2]
[336041716,1724677853413,-898.892973,0.00012351,2]
[336041717,1724677853423,-539.070178,0.00012351,2]
[336041718,1724677853433,-1504.523589,0.00012351,2]
[336041719,1724677853443,-539.070178,0.00012351,2]
[336041720,1724677853452,-1504.523589,0.00012351,2]
[336041721,1724677853463,-1059.389236,0.00012351,2]
[336041722,1724677853475,-1059.389236,0.00012351,2]
[336041723,1724677853496,-4505.450302,0.00012351,2]
[336041724,1724677853505,-4505.450302,0.00012351,2]
[336041725,1724677853516,-2332.52,0.00012351,2]
[336041726,1724677853527,-2213.59,0.00012351,2]
[336041727,1724677853537,-151.0,0.00012352,2]
[336041728,1724677853545,-151.0,0.00012352,2]
[336041729,1724677853555,-151.0,0.00012352,2]
[336041730,1724677853564,-151.0,0.00012352,2]
[336041731,1724677853573,-286.256871,0.00012352,2]
[336041732,1724677853583,-151.0,0.00012352,2]
[336041733,1724677853592,-151.0,0.00012352,2]
[336041734,1724677853602,-666.293601,0.00012352,2]
[336041735,1724677853611,-666.293601,0.00012352,2]
[336041736,1724677853620,-151.0,0.00012352,2]
[336041737,1724677853629,-170.414357,0.00012352,2]
[336041738,1724677853639,-170.414357,0.00012352,2]
[336041739,1724677853648,-262.086838,0.00012352,2]
[336041740,1724677853657,-1347.664072,0.00012352,2]
[336041741,1724677853666,-262.086838,0.00012352,2]
[336041742,1724677853676,-1347.664072,0.00012352,2]
[336041743,1724677853685,-988.037663,0.00012352,2]
[336041744,1724677853694,-344.307631,0.00012352,2]
[336041745,1724677853703,-988.037663,0.00012352,2]
[336041746,1724677853712,-344.307631,0.00012352,2]
[336041747,1724677853721,-1661.795902,0.00012352,2]
[336041748,1724677853735,-1661.795902,0.00012352,2]
[336041749,1724677853745,-151.0,0.00012352,2]
[336041750,1724677853754,-500.0,0.00012372,2]
[336041751,1724677853764,-500.0,0.00012372,2]
[336041752,1724677853773,-500.0,0.00012372,2]
[336041753,1724677853783,-1005.88,0.00012372,2]
[336041754,1724677853792,-168.04277307,0.00012373,2]
[336041755,1724677853801,-312.06841519,0.00012373,2]
[336041756,1724677853811,-500.0,0.00012373,2]
[336041757,1724677853821,-500.0,0.00012373,2]
[336041758,1724677853831,-500.0,0.00012373,2]
[336041759,1724677853841,-500.0,0.00012373,2]
[336041760,1724677853850,-818.6266373,0.000124,2]
[336041761,1724677853861,-151.0,0.00012404,2]
[336041762,1724677853870,-657.413458,0.00012404,2]
[336041763,1724677853879,-657.413458,0.00012404,2]
[336041764,1724677853888,-210.045066,0.00012414,2]
[336041765,1724677853898,-210.045066,0.00012414,2]
[336041766,1724677853907,-204.07300308,0.00012433,2]
[336041767,1724677853916,-5975.09319855,0.00012433,2]
[336041768,1724677853926,-539.070178,0.00012433,2]
[336041769,1724677853935,-539.070178,0.00012433,2]
[336041770,1724677853944,-1504.523589,0.00012433,2]
[336041771,1724677853953,-1504.523589,0.00012433,2]
[336041772,1724677853963,-1059.389236,0.00012433,2]
[336041773,1724677853972,-1059.389236,0.00012433,2]
[336041774,1724677853983,-2166.514771,0.00012433,2]
[336041775,1724677853992,-2166.514771,0.00012433,2]
[336041776,1724677854002,-4505.450302,0.00012433,2]
[336041777,1724677854011,-4505.450302,0.00012433,2]
[336041778,1724677854020,-151.0,0.00012433,2]
[336041779,1724677854029,-2262.423483,0.00012433,2]
[336041780,1724677854039,-2262.423483,0.00012433,2]
[336041781,1724677854048,-2259.303336,0.00012433,2]
[336041782,1724677854057,-2259.303336,0.00012433,2]
[336041783,1724677854066,-2520.188002,0.00012433,2]
[336041784,1724677854076,-2520.188011,0.00012433,2]
[336041785,1724677854086,-204.475249,0.00012433,2]
[336041786,1724677854096,-204.475241,0.00012433,2]
[336041787,1724677854105,-225.379496,0.00012433,2]
[336041788,1724677854115,-635.419131,0.00012433,2]
[336041789,1724677854125,-225.379496,0.00012433,2]
[336041790,1724677854135,-635.419131,0.00012433,2]
[336041791,1724677854144,-1549.699567,0.00012433,2]
[336041792,1724677854153,-1549.699567,0.00012433,2]
[336041793,1724677854162,-262.646992,0.00012433,2]
[336041794,1724677854172,-262.646982,0.00012433,2]
[336041795,1724677854182,-1334.319411,0.00012433,2]
[336041796,1724677854192,-1334.319417,0.00012433,2]
[336041797,1724677854201,-174.492092,0.00012433,2]
[336041798,1724677854211,-174.492085,0.00012433,2]
[336041799,1724677854220,-466.15615594,0.00012453,2]
[336041800,1724677854231,-190.80297655,0.000125,2]
[336041801,1724677854240,-505.66,0.00012501,2]
[336041802,1724677854249,-712.8,0.00012501,2]
[336041803,1724677854258,-1010.78,0.00012502,2]
[336041804,1724677854268,-989.6,0.00012502,2]
[336041805,1724677854277,-805.58,0.00012502,2]
[336041806,1724677854287,-500.0,0.00012502,2]
[336041807,1724677854303,-709.2,0.00012502,2]
[336041808,1724677854315,-500.0,0.00012502,2]
[336041809,1724677854325,-1397.99,0.00012502,2]
[336041810,1724677854335,-500.0,0.00012502,2]
[336041811,1724677854345,-665.79,0.00012502,2]
[336041812,1724677854355,-16764.58476016,0.00012502,2]
[336041813,1724677855059,-586.18,0.00012249,2]
[336041814,1724677855068,-500.0,0.00012249,2]
[336041815,1724677855078,-566.38488264,0.00012249,2]
[336041816,1724677855087,-500.0,0.0001225,2]
[336041817,1724677855096,-1327.01,0.0001232,2]
[336041818,1724677855107,-722.005013,0.00012327,2]
[336041819,1724677855116,-722.005013,0.00012328,2]
[336041820,1724677855126,-722.005013,0.00012328,2]
[336041821,1724677855135,-722.005013,0.00012328,2]
[336041822,1724677855145,-722.005013,0.0001233,2]
[336041823,1724677855154,-722.005013,0.00012331,2]
[336041824,1724677855163,-6464.31523984,0.00012502,2]
[336041825,1724677855173,-683.86,0.00012502,2]
[336041826,1724677855183,-1071.22,0.00012502,2]
[336041827,1724677855192,-500.0,0.00012502,2]
[336041828,1724677855201,-1468.67,0.00012502,2]
[336041829,1724677855211,-500.0,0.00012502,2]
[336041830,1724677855220,-500.0,0.00012502,2]
[336041831,1724677855230,-656.27,0.00012502,2]
[336041832,1724677855239,-500.0,0.00012502,2]
[336041833,1724677855249,-569.01,0.00012502,2]
[336041834,1724677855259,-500.0,0.00012502,2]
[336041835,1724677855268,-692.76,0.00012502,2]
[336041836,1724677855278,-500.0,0.00012502,2]
[336041837,1724677855290,-500.0,0.00012502,2]
[336041838,1724677855300,-500.0,0.00012502,2]
[336041839,1724677855310,-500.0,0.00012502,2]
[336041840,1724677855319,-500.0,0.00012502,2]
[336041841,1724677855330,-500.0,0.00012503,2]
[336041842,1724677855340,-549.48,0.00012503,2]
[336041843,1724677855349,-2332.52,0.00012503,2]
[336041844,1724677855359,-2332.52,0.00012503,2]
[336041845,1724677855371,-2332.52,0.00012503,2]
[336041846,1724677855381,-2332.52,0.00012503,2]
[336041847,1724677855390,-2332.75,0.00012503,2]
[336041848,1724677855402,-2213.59,0.00012503,2]
[336041849,1724677855412,-151.0,0.00012504,2]
[336041850,1724677855424,-544.298299,0.00012504,2]
[336041851,1724677855434,-544.298299,0.00012504,2]
[336041852,1724677855443,-303.812604,0.00012504,2]
[336041853,1724677855453,-303.812604,0.00012504,2]
[336041854,1724677855462,-500.0,0.00012512,2]
[336041855,1724677855473,-500.0,0.00012512,2]
[336041856,1724677855483,-500.0,0.00012512,2]
[336041857,1724677855492,-1005.88,0.00012512,2]
[336041858,1724677855501,-500.0,0.00012513,2]
[336041859,1724677855511,-549.48,0.00012513,2]
[336041860,1724677855521,-549.48,0.00012513,2]
[336041861,1724677855531,-549.48,0.00012513,2]
[336041862,1724677855540,-549.48,0.00012513,2]
[336041863,1724677855549,-549.541576,0.00012513,2]
[336041864,1724677855558,-898.892973,0.00012513,2]
[336041865,1724677855568,-2213.59,0.00012513,2]
[336041866,1724677855577,-2213.59,0.00012513,2]
[336041867,1724677855587,-2213.59,0.00012513,2]
[336041868,1724677855596,-2213.59,0.00012513,2]
[336041869,1724677855605,-2213.60268939,0.00012513,2]
[336041870,1724677855615,-151.0,0.00012514,2]
[336041871,1724677855625,-1661.795902,0.00012514,2]
[336041872,1724677855634,-1661.795902,0.00012514,2]
[336041873,1724677855646,-151.0,0.00012514,2]
[336041874,1724677855656,-500.0,0.00012515,2]
[336041875,1724677855666,-210.045066,0.00012516,2]
[336041876,1724677855676,-210.045066,0.00012516,2]
[336041877,1724677855685,-151.0,0.00012516,2]
[336041878,1724677855694,-211.142925,0.00012516,2]
[336041879,1724677855704,-211.142925,0.00012516,2]
[336041880,1724677855713,-170.414357,0.00012516,2]
[336041881,1724677855723,-170.414357,0.00012516,2]
[336041882,1724677855733,-1347.664072,0.00012516,2]
[336041883,1724677855743,-1347.664072,0.00012516,2]
[336041884,1724677855752,-988.037663,0.00012516,2]
[336041885,1724677855762,-158.3079252,0.00012516,2]
[336041886,1724677855819,-12.50670308,0.00012516,2]
[336041888,1724677934021,417.39,0.00010959,2]
[336041889,1724677947500,5401.63599561,0.00011236,2]
[336041890,1724677947525,213.64625514,0.00011236,2]
[336041906,1724678746143,-233.33560748,9.801e-05,2]
[336041910,1724678834151,-278.31099741,9.8e-05,2]
[336041921,1724678951183,-300.0,9.799e-05,2]
[336041922,1724678951205,-4619.11395466,9.8e-05,2]
[336041923,1724678951227,-4724.09299775,9.8e-05,2]
[336041924,1724678951251,-218.86681783,9.8e-05,2]
[336041925,1724678951272,-404.65460675,9.8e-05,2]
[336041926,1724678951293,-1095.97423083,9.8e-05,2]
[336041927,1724678951318,-6612.12591735,9.8e-05,2]
[336041928,1724678951338,-1309.31158726,9.8e-05,2]
[336041929,1724678951357,-6749.28001256,9.8e-05,2]
[336041930,1724678951377,-2113.86035463,9.8e-05,2]
[336041931,1724678951398,-2113.86035463,9.8e-05,2]
[336041932,1724678951420,-422.43413279,9.899e-05,2]
[336041933,1724678951440,-1344.7188845,0.00010765,2]
[336041934,1724678951460,-420.0,0.00010779,2]
[336041935,1724678951482,-6455.9804342,0.000108,2]
[336041936,1724678951503,-158.1,0.00010959,2]
[336041937,1724678951524,-790.54,0.00010959,2]
[336041938,1724678951545,-461.519813,0.00010959,2]
[336041939,1724678951579,-154.77557542,0.00011236,2]
[336041940,1724678951603,-1672.36760276,0.00011236,2]
[336041941,1724678951623,-38.05403301,0.00011409,2]
[336041942,1724678956102,-1095.97423083,9.8e-05,2]
[336041943,1724678956124,-162.5,0.00010599,2]
[336041944,1724678956146,-162.5,0.00010629,2]
[336041945,1724678956167,-162.5,0.00010658,2]
[336041946,1724678956188,-162.5,0.00010687,2]
[336041947,1724678956209,-162.5,0.00010716,2]
[336041948,1724678956229,-162.5,0.00010745,2]
[336041949,1724678956250,-695.28989851,0.00010958,2]
[336041950,1724678956271,-811.33770474,0.00011731,2]
[336041951,1724678957212,162.5,0.00010774,2]
[336041952,1724678957460,162.5,0.00010803,2]
[336041953,1724678957702,162.5,0.00010832,2]
[336041954,1724678957984,162.5,0.00010861,2]
[336041955,1724678958304,162.5,0.0001089,2]
[336041956,1724678958534,162.5,0.00010919,2]
[336041957,1724678958798,162.5,0.00010948,2]
[336041958,1724678958872,535.23487752,0.00011731,2]
[336041959,1724678959033,162.5,0.00010977,2]
[336041960,1724678959264,162.5,0.00011006,2]
[336041961,1724678959514,162.5,0.00011035,2]
[336041962,1724678959737,162.5,0.00011065,2]
[336041963,1724678959964,162.5,0.00011094,2]
[336041964,1724678960211,162.5,0.00011123,2]
[336041965,1724678960628,162.5,0.00011152,2]
[336041966,1724678962119,-2143.02877073,0.00011842,2]
[336041967,1724678962154,-2712.87069354,0.00011842,2]
[336041968,1724678962187,-587.0,0.00011857,2]
[336041973,1724678969810,157.48331931,0.00010958,2]
[336041974,1724678969832,537.8065792,0.00010958,2]
[336041977,1724679015585,1671.98997101,0.00010958,2]
[336041978,1724679018682,500.0,0.0001162,2]
[336041979,1724679022314,287.05746871,0.0001162,2]
[336041980,1724679030546,2753.05092937,0.00010958,2]
[336042020,1724679032630,-212.94253129,0.0001162,2]
[336042022,1724679032640,-500.0,0.0001162,2]
[336042024,1724679032650,-155.24629628,0.00011842,2]
[336042025,1724679032662,-300.0,0.00011878,2]
[336042027,1724679032671,-2113.86035463,0.00011879,2]
[336042029,1724679032680,-163.12795636,0.00011879,2]
[336042031,1724679032690,-4718.76754011,0.00011879,2]
[336042033,1724679032703,-535.23487752,0.00011879,2]
[336042035,1724679032713,-218.41668567,0.00011879,2]
[336042037,1724679032722,-500.0,0.00011894,2]
[336042039,1724679032731,-500.0,0.00011894,2]
[336042041,1724679032741,-792.25762571,0.00012155,2]
[336042094,1724679038551,-500.0,0.0001162,2]
[336042095,1724679038561,-796.52,0.0001162,2]
[336042096,1724679038571,-74.88881746,0.0001162,2]
[336042097,1724679038585,-562.04118254,0.0001162,2]
[336042098,1724679038595,-796.52,0.00011894,2]
[336042099,1724679038605,-636.93,0.00011894,2]
[336042100,1724679038615,-4868.55384395,0.00012155,2]
[336042101,1724679038630,-208.95368901,0.00012163,2]
[336042102,1724679038646,-500.0,0.00012168,2]
[336042103,1724679038655,-500.0,0.00012168,2]
[336042104,1724679038666,-796.52,0.00012168,2]
[336042105,1724679038676,-636.93,0.00012168,2]
[336042106,1724679038686,-16859.0616762,0.00012206,2]
[336042107,1724679038698,-16859.0616762,0.00012207,2]
[336042108,1724679038708,-500.0,0.00012215,2]
[336042109,1724679038719,-638.04,0.00012215,2]
[336042110,1724679038728,-655.37,0.00012215,2]
[336042111,1724679038738,-500.0,0.00012215,2]
[336042112,1724679038748,-1407.47,0.00012215,2]
[336042113,1724679038758,-500.0,0.00012215,2]
[336042114,1724679038768,-628.93,0.00012215,2]
[336042115,1724679038777,-522.57,0.00012215,2]
[336042116,1724679038786,-663.9,0.00012215,2]
[336042117,1724679038796,-500.0,0.00012215,2]
[336042118,1724679038805,-500.0,0.00012215,2]
[336042119,1724679038815,-501.75,0.00012215,2]
[336042120,1724679038825,-500.0,0.00012215,2]
[336042121,1724679038836,-616.04,0.00012215,2]
[336042122,1724679038846,-500.0,0.00012216,2]
[336042123,1724679038856,-945.2,0.00012216,2]
[336042124,1724679038867,-500.0,0.00012216,2]
[336042125,1724679038878,-500.0,0.00012216,2]
[336042126,1724679038888,-500.0,0.00012216,2]
[336042127,1724679038898,-591.65871831,0.00012216,2]
[336042128,1724679038908,-573.8,0.00012216,2]
[336042129,1724679038917,-501.68262763,0.00012216,2]
[336042130,1724679038927,-500.0,0.00012216,2]
[336042131,1724679038936,-500.0,0.00012216,2]
[336042132,1724679038946,-500.0,0.00012216,2]
[336042133,1724679038956,-500.0,0.00012216,2]
[336042134,1724679038965,-873.65,0.00012216,2]
[336042135,1724679038975,-965.44,0.00012216,2]
[336042136,1724679038986,-500.0,0.00012216,2]
[336042137,1724679038996,-788.96,0.00012216,2]
[336042138,1724679039006,-624.42,0.00012216,2]
[336042139,1724679039016,-513.17,0.00012216,2]
[336042140,1724679039025,-679.82,0.00012216,2]
[336042141,1724679039035,-704.21,0.00012216,2]
[336042142,1724679039044,-116.53450792,0.00012216,2]
[336042143,1724679039438,-400.66549208,0.00012216,2]
[336042144,1724679039448,-792.46,0.00012216,2]
[336042145,1724679039457,-571.38,0.00012216,2]
[336042146,1724679039467,-973.41,0.00012216,2]
[336042147,1724679039477,-500.0,0.00012216,2]
[336042148,1724679039486,-548.73,0.00012216,2]
[336042149,1724679039496,-500.0,0.00012216,2]
[336042150,1724679039505,-930.17,0.00012216,2]
[336042151,1724679039516,-500.0,0.00012216,2]
[336042152,1724679039525,-500.0,0.00012216,2]
[336042153,1724679039535,-537.58,0.00012216,2]
[336042154,1724679039544,-500.0,0.00012216,2]
[336042155,1724679039554,-611.3,0.00012216,2]
[336042156,1724679039564,-500.0,0.00012216,2]
[336042157,1724679039573,-506.62,0.00012216,2]
[336042158,1724679039582,-500.0,0.00012216,2]
[336042159,1724679039592,-500.0,0.00012216,2]
[336042160,1724679039603,-337.80461224,0.00012216,2]
[336042161,1724679039613,-806.63,0.00012216,2]
[336042162,1724679039627,-500.0,0.00012216,2]
[336042163,1724679039638,-544.74,0.00012216,2]
[336042164,1724679039647,-500.0,0.00012216,2]
[336042165,1724679039656,-993.37,0.00012216,2]
[336042166,1724679039667,-948.37,0.00012216,2]
[336042167,1724679039678,-639.44,0.00012216,2]
[336042168,1724679039688,-500.0,0.00012216,2]
[336042169,1724679039698,-808.33,0.00012216,2]
[336042170,1724679039708,-500.0,0.00012216,2]
[336042171,1724679039718,-2043.59,0.00012216,2]
[336042172,1724679039728,-500.0,0.00012216,2]
[336042173,1724679039737,-500.0,0.00012216,2]
[336042174,1724679039748,-850.12,0.00012216,2]
[336042175,1724679039759,-592.48,0.00012216,2]
[336042176,1724679039770,-776.15,0.00012216,2]
[336042177,1724679039780,-553.65,0.00012216,2]
[336042178,1724679039790,-500.0,0.00012216,2]
[336042179,1724679039800,-500.0,0.00012216,2]
[336042180,1724679039810,-587.52,0.00012216,2]
[336042181,1724679039820,-709.64,0.00012216,2]
[336042182,1724679039831,-1307.86,0.00012216,2]
[336042183,1724679039841,-855.29,0.00012216,2]
[336042184,1724679039852,-500.0,0.00012216,2]
[336042185,1724679039861,-1408.95,0.00012216,2]
[336042186,1724679039871,-2136.09,0.00012216,2]
[336042187,1724679039882,-777.94,0.00012216,2]
[336042188,1724679039891,-637.32,0.00012216,2]
[336042189,1724679039901,-500.0,0.00012216,2]
[336042190,1724679039911,-500.0,0.00012216,2]
[336042191,1724679039921,-2350.41,0.00012216,2]
[336042192,1724679039930,-500.0,0.00012216,2]
[336042193,1724679039939,-500.0,0.00012216,2]
[336042194,1724679039948,-748.44,0.00012216,2]
[336042195,1724679039958,-500.0,0.00012216,2]
[336042196,1724679039967,-1434.58,0.00012216,2]
[336042197,1724679039977,-22820.0,0.00012216,2]
[336042198,1724679039987,-500.0,0.00012216,2]
[336042199,1724679039997,-500.0,0.00012216,2]
[336042200,1724679040006,-500.0,0.00012216,2]
[336042201,1724679040017,-1026.59,0.00012216,2]
[336042202,1724679040026,-500.0,0.00012216,2]
[336042203,1724679040036,-513.67,0.00012216,2]
[336042204,1724679040045,-500.0,0.00012216,2]
[336042205,1724679040055,-712.49,0.00012216,2]
[336042206,1724679040064,-781.21,0.00012216,2]
[336042207,1724679040073,-727.56,0.00012216,2]
[336042208,1724679040083,-1008.7,0.00012216,2]
[336042209,1724679040092,-745.78,0.00012216,2]
[336042210,1724679040101,-1025.4,0.00012216,2]
[336042211,1724679040111,-500.0,0.00012216,2]
[336042212,1724679040121,-500.0,0.00012216,2]
[336042213,1724679040133,-768.48,0.00012216,2]
[336042214,1724679040143,-500.0,0.00012216,2]